bitfinex/quotes_BTCUSD_20240719
["timestamp","ask_amount","ask_price","bid_price","bid_amount"]
[1721363760504,0.1429,64356.0,64353.0,0.155391]
[1721363760707,0.1429,64356.0,64354.0,0.155389]
[1721363760906,0.1429,64356.0,64352.0,0.155393]
[1721363761337,0.1459,64356.0,64352.0,0.155393]
[1721363761556,0.1459,64356.0,64353.0,0.155392]
[1721363761766,0.2229,64354.0,64353.0,0.155392]
[1721363763806,0.2269,64354.0,64353.0,0.155392]
[1721363765370,0.2239,64354.0,64353.0,0.776962]
[1721363766054,0.2269,64354.0,64353.0,0.776962]
[1721363766500,0.2239,64354.0,64353.0,0.776962]
[1721363766899,0.2259,64354.0,64353.0,0.776962]
[1721363767389,0.2249,64354.0,64353.0,0.776962]
[1721363767889,0.2857,64354.0,64353.0,0.776962]
[1721363768044,0.3653,64354.0,64351.0,0.155396]
[1721363768366,0.3653,64354.0,64353.0,0.002]
[1721363769005,0.3633,64354.0,64353.0,0.002]
[1721363769223,0.3633,64354.0,64349.0,0.155402]
[1721363769434,0.2229,64350.0,64349.0,0.155402]
[1721363770967,0.2239,64350.0,64349.0,0.164402]
[1721363774303,0.2239,64350.0,64349.0,0.475207]
[1721363775895,0.001,64350.0,64349.0,0.86318679]
[1721363776297,0.001,64350.0,64349.0,0.786012]
[1721363780830,0.001,64350.0,64349.0,0.164402]
[1721363780831,0.2993,64350.0,64349.0,0.164402]
[1721363781031,0.364,64350.0,64349.0,0.009]
[1721363781432,0.364,64350.0,64349.0,0.165315]
[1721363781656,0.001,64350.0,64349.0,0.47612]
[1721363783263,0.001,64350.0,64349.0,0.165315]
[1721363784079,0.001,64350.0,64349.0,0.009913]
[1721363784245,0.2678,64350.0,64349.0,0.009913]
[1721363784443,0.2314,64350.0,64349.0,0.009913]
[1721363784706,0.27489705,64350.0,64349.0,0.009913]
[1721363785435,0.27489705,64350.0,64349.0,0.003913]
[1721363785436,0.27389705,64350.0,64349.0,0.003913]
[1721363785637,0.27389705,64350.0,64349.0,0.000913]
[1721363785850,0.27407318,64350.0,64349.0,0.000913]
[1721363786043,0.27607318,64350.0,64349.0,0.000913]
[1721363786176,0.40987318,64350.0,64349.0,0.000913]
[1721363786377,0.40792719,64350.0,64349.0,0.000913]
[1721363786802,0.40792719,64350.0,64349.0,0.001913]
[1721363786803,0.41092719,64350.0,64349.0,0.001913]
[1721363787123,0.41092719,64350.0,64349.0,0.003913]
[1721363787344,0.41092719,64350.0,64349.0,0.001913]
[1721363787480,0.40792719,64350.0,64349.0,0.000913]
[1721363787666,0.41592719,64350.0,64349.0,0.001913]
[1721363788973,0.3752,64350.0,64349.0,0.002913]
[1721363789170,0.41918681,64350.0,64349.0,0.002913]
[1721363790671,0.57458681,64350.0,64349.0,0.002913]
[1721363791073,0.56658681,64350.0,64349.0,0.001913]
[1721363791270,0.57158681,64350.0,64349.0,0.001913]
[1721363791816,1.17703617,64350.0,64349.0,0.000913]
[1721363792007,1.17703617,64350.0,64334.0,0.156351]
[1721363792008,0.1472,64349.0,64334.0,0.000913]
[1721363792128,0.223,64335.0,64334.0,0.000913]
[1721363792337,0.3702,64335.0,64334.0,0.000913]
[1721363793622,0.3712,64335.0,64334.0,0.016913]
[1721363794627,0.3712,64335.0,64334.0,0.010913]
[1721363794858,0.3702,64335.0,64334.0,0.000913]
[1721363795271,0.3702,64335.0,64334.0,0.003913]
[1721363796100,0.3702,64335.0,64334.0,0.004913]
[1721363796717,0.3702,64335.0,64325.0,0.000913]
[1721363796718,0.4227624,64335.0,64325.0,0.000913]
[1721363796930,0.38803079,64339.0,64325.0,0.000913]
[1721363796931,0.3623,64326.0,64325.0,0.000913]
[1721363798184,0.3683,64326.0,64325.0,0.001913]
[1721363799578,0.3763,64326.0,64325.0,0.002913]
[1721363800486,0.237,64326.0,64325.0,0.002913]
[1721363801150,0.237,64326.0,64322.0,0.132549]
[1721363801353,0.002794,64325.0,64322.0,0.132549]
[1721363801588,0.002794,64325.0,64320.0,0.21827479]
[1721363801768,0.237,64326.0,64320.0,0.21827479]
[1721363801769,0.014,64326.0,64325.0,0.466381]
[1721363802143,0.014,64326.0,64325.0,1.088223]
[1721363802364,0.006,64326.0,64325.0,1.088223]
[1721363802714,0.014,64326.0,64325.0,1.088223]
[1721363803164,0.223,64332.0,64331.0,0.466338]
[1721363803544,0.223,64332.0,64331.0,0.77723]
[1721363804149,0.002794,64350.0,64337.0,0.466294]
[1721363804369,0.002794,64350.0,64349.0,0.155402]
[1721363804570,0.002794,64350.0,64348.0,0.310809]
[1721363804571,0.223,64351.0,64350.0,0.1554]
[1721363804869,0.223,64351.0,64350.0,0.777]
[1721363805070,0.223,64351.0,64350.0,0.4662]
[1721363805277,0.223,64351.0,64344.0,0.310827]
[1721363805478,0.223,64345.0,64342.0,0.310834]
[1721363806122,0.223,64345.0,64343.0,0.466251]
[1721363806123,0.002794,64344.0,64343.0,0.466251]
[1721363806340,0.223,64345.0,64344.0,0.466243]
[1721363807451,0.228,64345.0,64344.0,0.466243]
[1721363807888,0.233,64345.0,64344.0,0.467243]
[1721363809525,0.223,64345.0,64344.0,0.466243]
[1721363810050,0.23,64345.0,64344.0,0.467243]
[1721363810552,0.23,64345.0,64344.0,0.466243]
[1721363810553,0.223,64345.0,64344.0,0.466243]
[1721363810934,0.227,64345.0,64344.0,0.466243]
[1721363811557,0.229,64345.0,64344.0,0.155414]
[1721363811758,0.002794,64344.0,64342.0,0.155418]
[1721363812008,0.002794,64344.0,64343.0,0.155417]
[1721363812210,0.229,64345.0,64344.0,0.155414]
[1721363812915,0.223,64345.0,64344.0,0.466243]
[1721363813667,0.224,64345.0,64344.0,0.466243]
[1721363813864,0.227,64345.0,64344.0,0.466243]
[1721363814091,0.226,64345.0,64344.0,0.466243]
[1721363814266,0.227,64345.0,64344.0,0.466243]
[1721363814470,0.22483,64345.0,64344.0,0.466243]
[1721363815002,0.22783,64345.0,64344.0,0.466243]
[1721363816771,0.22383,64345.0,64344.0,0.466243]
[1721363816945,0.22483,64345.0,64344.0,0.466243]
[1721363817145,0.22683,64345.0,64344.0,0.466243]
[1721363817489,0.22483,64345.0,64344.0,0.777072]
[1721363817886,0.22783,64345.0,64344.0,0.777072]
[1721363818342,0.22783,64345.0,64336.0,0.06]
[1721363818555,0.223,64338.0,64337.0,0.466294]
[1721363818813,0.223,64338.0,64337.0,0.877157]
[1721363820375,0.224,64338.0,64337.0,0.882157]
[1721363821564,0.224,64338.0,64337.0,0.887157]
[1721363821767,0.224,64338.0,64337.0,0.01]
[1721363821950,0.224,64338.0,64337.0,0.476294]
[1721363822410,0.224,64338.0,64337.0,0.165431]
[1721363825898,0.224,64338.0,64337.0,0.01]
[1721363830094,0.3692,64338.0,64337.0,0.01]
[1721363830297,0.524629,64338.0,64337.0,0.01]
[1721363830694,0.835487,64338.0,64337.0,0.01]
[1721363830935,0.42049769,64338.0,64325.0,0.000913]
[1721363831137,0.223,64326.0,64325.0,0.000913]
[1721363832414,0.223,64326.0,64325.0,0.001913]
[1721363833580,0.223,64326.0,64325.0,0.000913]
[1721363834053,0.231,64326.0,64325.0,0.001913]
[1721363834531,0.225,64326.0,64325.0,0.000913]
[1721363834762,0.3676544,64326.0,64325.0,0.000913]
[1721363834966,0.3736544,64326.0,64325.0,0.000913]
[1721363835140,0.3724,64326.0,64325.0,0.000913]
[1721363835302,0.3684,64326.0,64325.0,0.000913]
[1721363835691,0.3774,64326.0,64325.0,0.000913]
[1721363836111,0.3754,64326.0,64325.0,0.000913]
[1721363836506,0.3814,64326.0,64325.0,0.000913]
[1721363837016,0.3884,64326.0,64325.0,0.000913]
[1721363837447,0.9467941,64326.0,64325.0,0.000913]
[1721363838342,0.9567941,64326.0,64325.0,0.001913]
[1721363838782,0.9647941,64326.0,64325.0,0.002913]
[1721363839277,0.832774,64326.0,64325.0,0.000913]
[1721363839524,0.840774,64326.0,64325.0,0.000913]
[1721363844294,0.306858,64326.0,64325.0,0.000913]
[1721363844558,0.396158,64326.0,64325.0,0.000913]
[1721363847364,0.155477,64318.0,64307.0,0.155502]
[1721363847574,0.0893,64310.0,64309.0,0.0795]
[1721363847778,0.0893,64310.0,64306.0,0.07177689]
[1721363847983,0.146,64317.0,64307.0,0.235403]
[1721363848133,0.146,64317.0,64308.0,0.07717479]
[1721363848336,0.0893,64309.0,64308.0,0.07717479]
[1721363849297,0.0893,64309.0,64308.0,0.23267579]
[1721363849501,0.0893,64309.0,64307.0,0.0799]
[1721363849757,0.0893,64309.0,64307.0,0.235403]
[1721363850375,0.2232,64309.0,64307.0,0.235403]
[1721363850574,0.2232,64309.0,64308.0,0.001]
[1721363851018,0.2232,64309.0,64307.0,0.235403]
[1721363853059,0.2232,64309.0,64307.0,0.0799]
[1721363853274,0.2232,64309.0,64306.0,0.317805]
[1721363855231,0.02232,64308.0,64305.0,0.155508]
[1721363855640,0.0601,64308.0,64305.0,0.155508]
[1721363856278,0.0601,64308.0,64301.0,0.466553]
[1721363856484,0.0601,64308.0,64300.0,0.1383]
[1721363856485,0.2232,64303.0,64300.0,0.14755606]
[1721363856660,0.2232,64303.0,64300.0,0.00925606]
[1721363856868,0.2232,64303.0,64297.0,0.372556]
[1721363856869,0.2232,64303.0,64299.0,0.155522]
[1721363857270,0.2232,64303.0,64297.0,0.372556]
[1721363857271,0.2232,64303.0,64300.0,0.155519]
[1721363858124,0.2232,64303.0,64301.0,0.155516]
[1721363858287,0.2232,64303.0,64302.0,0.155516]
[1721363858692,0.2232,64303.0,64302.0,0.304916]
[1721363858890,0.2232,64303.0,64302.0,0.615948]
[1721363859462,0.2232,64303.0,64302.0,0.304916]
[1721363863086,0.2232,64303.0,64302.0,0.238716]
[1721363863238,0.2232,64303.0,64302.0,0.155516]
[1721363864320,0.2132,64303.0,64302.0,0.155516]
[1721363864748,0.2132,64303.0,64302.0,0.466548]
[1721363865454,0.2232,64309.0,64302.0,0.311032]
[1721363865680,0.2232,64309.0,64302.0,0.454932]
[1721363865887,0.2232,64309.0,64308.0,0.466504]
[1721363866104,0.2232,64309.0,64308.0,0.613104]
[1721363866307,0.2232,64315.0,64308.0,0.1466]
[1721363866509,0.2232,64315.0,64314.0,0.155487]
[1721363866708,0.2232,64315.0,64313.0,0.155488]
[1721363867947,0.2232,64315.0,64314.0,0.155487]
[1721363868685,0.2232,64315.0,64314.0,0.466461]
[1721363869094,0.1466,64315.0,64312.0,0.155491]
[1721363869319,0.1466,64315.0,64308.0,0.001]
[1721363869320,0.2232,64312.0,64308.0,0.001]
[1721363869528,0.2232,64312.0,64308.0,0.1565]
[1721363869935,0.2232,64312.0,64308.0,0.1555]
[1721363870970,0.2232,64312.0,64307.0,0.311006]
[1721363871438,0.2232,64312.0,64308.0,0.1555]
[1721363871628,0.2232,64312.0,64309.0,0.155498]
[1721363872252,0.2372,64312.0,64309.0,0.155498]
[1721363872661,0.2312,64312.0,64309.0,0.155498]
[1721363872858,0.2232,64312.0,64309.0,0.155498]
[1721363873063,0.2412,64312.0,64309.0,0.156498]
[1721363873291,0.2412,64312.0,64311.0,0.155494]
[1721363873292,0.2332,64312.0,64311.0,0.155494]
[1721363873688,0.2292,64312.0,64311.0,0.155494]
[1721363873896,0.2372,64312.0,64311.0,0.155494]
[1721363875192,0.2312,64312.0,64311.0,0.155494]
[1721363875392,0.2232,64312.0,64311.0,0.155494]
[1721363875643,0.2292,64312.0,64311.0,0.155494]
[1721363875831,0.2372,64312.0,64311.0,0.156494]
[1721363876512,0.2372,64312.0,64311.0,0.85564479]
[1721363876719,0.2372,64312.0,64311.0,0.77847]
[1721363878666,0.014,64312.0,64311.0,1.234758]
[1721363879368,0.008,64312.0,64311.0,1.70012774]
[1721363879575,0.2232,64330.0,64329.0,0.466351]
[1721363879800,0.2232,64330.0,64329.0,0.777252]
[1721363880024,0.00083,64337.0,64335.0,0.310872]
[1721363880025,0.2232,64336.0,64335.0,0.310872]
[1721363880224,0.2232,64336.0,64335.0,0.77718]
[1721363880664,0.2232,64336.0,64335.0,0.466308]
[1721363880879,0.2232,64336.0,64335.0,0.77718]
[1721363881519,0.2232,64336.0,64335.0,1.231652]
[1721363881749,0.00083,64337.0,64335.0,1.231652]
[1721363881750,0.00083,64337.0,64336.0,0.777167]
[1721363882677,0.00083,64337.0,64336.0,1.088034]
[1721363883299,0.00183,64337.0,64336.0,1.088034]
[1721363883505,0.00483,64337.0,64336.0,1.24241574]
[1721363883915,0.00883,64337.0,64336.0,1.24241574]
[1721363884117,0.00383,64337.0,64336.0,1.24241574]
[1721363884906,0.00083,64337.0,64336.0,1.24241574]
[1721363885315,0.00083,64337.0,64336.0,1.24441574]
[1721363885729,0.00083,64337.0,64336.0,1.24541574]
[1721363885730,0.00183,64337.0,64336.0,1.24541574]
[1721363889302,0.00183,64337.0,64336.0,1.81958274]
[1721363890512,0.00083,64337.0,64336.0,1.81858274]
[1721363891324,0.00183,64337.0,64336.0,1.81958274]
[1721363891725,0.00183,64337.0,64336.0,1.81758274]
[1721363892187,0.00183,64337.0,64336.0,1.81958274]
[1721363892678,0.00183,64337.0,64336.0,1.81758274]
[1721363893081,0.00283,64337.0,64336.0,1.82958274]
[1721363893424,0.00183,64337.0,64336.0,1.81758274]
[1721363893756,0.00183,64337.0,64336.0,1.82958274]
[1721363893960,0.00183,64337.0,64336.0,1.83897987]
[1721363894130,0.00283,64337.0,64336.0,1.84897987]
[1721363896530,0.00283,64337.0,64336.0,1.89897987]
[1721363896730,0.00283,64337.0,64336.0,1.84897987]
[1721363897205,0.00283,64337.0,64336.0,1.84867987]
[1721363898269,0.00083,64345.0,64344.0,1.226201]
[1721363898440,0.00083,64345.0,64344.0,1.48058274]
[1721363899674,0.00083,64345.0,64344.0,1.48458274]
[1721363899895,0.00183,64345.0,64344.0,1.48958274]
[1721363900641,0.202824,64354.0,64353.0,0.155392]
[1721363900844,0.202824,64354.0,64353.0,0.466177]
[1721363901055,0.202824,64354.0,64353.0,0.155392]
[1721363901227,0.339624,64354.0,64353.0,0.155392]
[1721363901452,0.339624,64354.0,64346.0,0.155409]
[1721363901453,0.0617,64349.0,64346.0,0.155409]
[1721363901650,0.155388,64355.0,64344.0,0.009]
[1721363901651,0.36,64345.0,64344.0,0.009]
[1721363902100,0.36,64345.0,64344.0,0.005]
[1721363902101,0.515412,64345.0,64344.0,0.005]
[1721363902611,0.826236,64345.0,64344.0,0.005]
[1721363903031,0.0617,64340.0,64334.0,0.16503509]
[1721363903252,0.0617,64340.0,64335.0,0.155436]
[1721363903451,0.2232,64336.0,64335.0,0.155436]
[1721363903864,0.2232,64336.0,64333.0,0.155439]
[1721363904203,0.2232,64336.0,64331.0,0.00935703]
[1721363904414,0.2232,64336.0,64335.0,0.001]
[1721363905421,0.36,64336.0,64335.0,0.001]
[1721363906188,0.364,64336.0,64335.0,0.001]
[1721363907496,0.369,64336.0,64335.0,0.001]
[1721363907698,0.369,64336.0,64328.0,0.255451]
[1721363907899,0.2232,64330.0,64328.0,0.255451]
[1721363909247,0.2242,64330.0,64329.0,0.15545]
[1721363909869,0.2242,64330.0,64328.0,0.105]
[1721363910512,0.2242,64330.0,64318.0,0.310952]
[1721363910513,0.155458,64326.0,64315.0,0.46645]
[1721363910659,0.2232,64318.0,64316.0,0.002794]
[1721363910854,0.2232,64318.0,64313.0,0.00960247]
[1721363910855,0.0615,64317.0,64313.0,0.00960247]
[1721363911069,0.0615,64317.0,64313.0,0.00018717]
[1721363911273,0.0615,64317.0,64314.0,0.155485]
[1721363911689,0.0615,64317.0,64315.0,0.155484]
[1721363912447,0.0615,64317.0,64316.0,0.1]
[1721363914035,0.2232,64324.0,64320.0,0.155472]
[1721363914254,0.310865,64337.0,64316.0,0.2361]
[1721363914255,0.2232,64330.0,64323.0,0.31093]
[1721363914461,0.2232,64330.0,64326.0,0.155457]
[1721363915433,0.2232,64330.0,64324.0,0.155461]
[1721363915674,0.2232,64330.0,64320.0,0.001]
[1721363915675,0.2232,64330.0,64320.0,0.003794]
[1721363915849,0.2232,64330.0,64320.0,0.155472]
[1721363915850,0.2232,64323.0,64320.0,0.155472]
[1721363916060,0.2232,64323.0,64321.0,0.002794]
[1721363916251,0.2232,64323.0,64320.0,0.155472]
[1721363916911,0.2232,64323.0,64322.0,0.002794]
[1721363917310,0.2232,64323.0,64321.0,0.155469]
[1721363917634,0.2232,64323.0,64322.0,0.002794]
[1721363918055,0.2232,64323.0,64321.0,0.155469]
[1721363918237,0.2232,64323.0,64322.0,0.002794]
[1721363918842,0.2312,64323.0,64322.0,0.002794]
[1721363919053,0.2312,64323.0,64321.0,0.155469]
[1721363919257,0.2232,64323.0,64322.0,0.002794]
[1721363919468,0.2232,64323.0,64322.0,0.003794]
[1721363919681,0.2292,64323.0,64322.0,0.001]
[1721363920920,0.2232,64323.0,64320.0,0.002794]
[1721363921333,0.2282,64323.0,64320.0,0.158265]
[1721363921777,0.2232,64323.0,64320.0,0.158265]
[1721363922007,0.2232,64323.0,64320.0,0.002794]
[1721363922229,0.0611,64322.0,64319.0,0.155474]
[1721363922471,0.0611,64322.0,64318.0,0.155476]
[1721363922689,0.0611,64322.0,64319.0,0.002794]
[1721363923346,0.0631,64322.0,64319.0,0.002794]
[1721363923550,0.0631,64322.0,64317.0,0.38813279]
[1721363924049,0.0631,64322.0,64319.0,0.155474]
[1721363924476,0.0671,64322.0,64319.0,0.155474]
[1721363924901,0.0631,64322.0,64319.0,0.155474]
[1721363925277,0.0651,64322.0,64319.0,0.155474]
[1721363925690,0.0611,64322.0,64319.0,0.155474]
[1721363926130,0.0651,64322.0,64319.0,0.155474]
[1721363926358,0.0671,64322.0,64319.0,0.155474]
[1721363926641,0.0651,64322.0,64319.0,0.155474]
[1721363926858,0.004,64322.0,64321.0,0.15547]
[1721363927095,0.006,64322.0,64321.0,0.15547]
[1721363927528,0.006,64322.0,64319.0,0.310949]
[1721363927748,0.002,64322.0,64320.0,0.158265]
[1721363927946,0.002,64322.0,64320.0,0.155471]
[1721363928057,0.006,64322.0,64321.0,0.002794]
[1721363928263,0.004,64322.0,64321.0,0.002794]
[1721363928666,0.002,64322.0,64321.0,0.002794]
[1721363928965,0.004,64322.0,64321.0,0.002794]
[1721363929221,0.005,64322.0,64321.0,0.002794]
[1721363929424,0.003,64322.0,64321.0,0.002794]
[1721363929768,0.003,64322.0,64321.0,0.158264]
[1721363930070,0.003,64322.0,64321.0,0.15547]
[1721363930833,0.005,64322.0,64321.0,0.15547]
[1721363931204,0.003,64322.0,64321.0,0.15547]
[1721363931405,0.2232,64323.0,64322.0,0.155467]
[1721363932829,0.2292,64323.0,64322.0,0.155467]
[1721363934408,0.2292,64323.0,64317.0,0.310959]
[1721363934608,0.2292,64323.0,64316.0,0.255481]
[1721363934609,0.1369,64322.0,64316.0,0.255481]
[1721363934813,0.2232,64317.0,64316.0,0.255481]
[1721363935976,0.2242,64317.0,64316.0,0.571445]
[1721363937404,0.2242,64317.0,64316.0,0.574445]
[1721363938742,0.001,64317.0,64316.0,0.574445]
[1721363940649,0.001,64317.0,64316.0,0.885409]
[1721363940880,0.001,64317.0,64316.0,1.01454428]
[1721363941083,0.001,64317.0,64316.0,0.885409]
[1721363942290,0.001,64317.0,64316.0,1.01454532]
[1721363943483,0.001,64317.0,64316.0,0.885409]
[1721363943882,0.001,64317.0,64316.0,1.01454442]
[1721363944659,0.001,64317.0,64316.0,1.32550842]
[1721363945582,0.2242,64317.0,64316.0,0.70358042]
[1721363945821,0.2242,64317.0,64316.0,0.574445]
[1721363950843,0.001,64317.0,64316.0,0.574445]
[1721363956617,0.001,64317.0,64316.0,0.263481]
[1721363957635,0.001,64317.0,64316.0,0.574445]
[1721363962224,0.0903,64317.0,64316.0,0.574445]
[1721363964027,0.001,64317.0,64316.0,0.574445]
[1721363964240,0.0903,64317.0,64316.0,0.574445]
[1721363972260,0.171,64317.0,64316.0,0.263481]
[1721363973723,0.0903,64317.0,64316.0,0.263481]
[1721363974526,0.001,64317.0,64316.0,0.263481]
[1721363974723,0.0903,64317.0,64316.0,0.263481]
[1721363975323,0.0903,64317.0,64316.0,0.637245]
[1721363976362,0.0903,64317.0,64316.0,0.638158]
[1721363976570,0.0903,64317.0,64316.0,1.335086]
[1721363976967,0.0903,64317.0,64316.0,1.15325944]
[1721363979430,0.0903,64317.0,64316.0,1.1532588]
[1721363980500,0.0903,64317.0,64316.0,1.15325888]
[1721363981083,0.0903,64317.0,64316.0,1.024122]
[1721363981872,0.0903,64317.0,64316.0,1.15325895]
[1721363982077,0.0903,64317.0,64316.0,0.886322]
[1721363984565,0.0903,64317.0,64316.0,1.015458]
[1721363984772,0.0903,64317.0,64316.0,0.886322]
[1721363984959,0.0903,64317.0,64316.0,1.48080345]
[1721363985695,0.0903,64317.0,64316.0,1.49236774]
[1721363986104,0.0903,64317.0,64316.0,1.62150477]
[1721363986477,0.0903,64317.0,64316.0,1.49236774]
[1721363987470,0.0903,64317.0,64316.0,0.886322]
[1721363992910,0.0903,64317.0,64316.0,0.575358]
[1721363994108,0.0903,64317.0,64316.0,0.108913]
[1721363994310,0.0903,64317.0,64316.0,0.008913]
[1721363995411,0.2291,64317.0,64316.0,0.008913]
[1721363999259,0.0903,64317.0,64316.0,0.011707]
[1721363999434,0.0903,64317.0,64316.0,0.008913]
[1721364000207,0.0903,64317.0,64316.0,0.164395]
[1721364000408,0.0903,64317.0,64316.0,0.264395]
[1721364000728,0.001,64317.0,64316.0,0.264395]
[1721364000948,0.0903,64317.0,64316.0,0.264395]
[1721364002695,0.0603,64317.0,64316.0,0.264395]
[1721364006031,0.0603,64317.0,64316.0,0.845439]
[1721364011733,0.0603,64317.0,64316.0,0.846352]
[1721364012089,0.06113,64317.0,64316.0,0.846352]
[1721364014392,0.00083,64317.0,64316.0,0.846352]
[1721364014565,0.09013,64317.0,64316.0,1.45719774]
[1721364019502,0.09013,64317.0,64316.0,1.39119774]
[1721364019677,0.09013,64317.0,64316.0,1.18818674]
[1721364020060,0.09013,64317.0,64316.0,1.34366874]
[1721364024861,0.09013,64317.0,64316.0,1.48566874]
[1721364029599,0.09013,64317.0,64316.0,1.34366874]
[1721364031363,0.066,64323.0,64321.0,0.155467]
[1721364031573,0.0893,64322.0,64321.0,0.15547]
[1721364033191,0.0903,64322.0,64321.0,0.15547]
[1721364033393,0.0933,64322.0,64321.0,0.15547]
[1721364034029,0.0933,64322.0,64321.0,0.46641]
[1721364034542,0.004,64322.0,64321.0,0.46641]
[1721364034697,0.0933,64322.0,64321.0,0.46641]
[1721364035569,0.0893,64322.0,64321.0,0.46641]
[1721364035817,0.0923,64322.0,64321.0,0.46641]
[1721364036021,0.0933,64322.0,64321.0,0.46641]
[1721364036241,0.0903,64322.0,64321.0,0.46641]
[1721364036447,0.0913,64322.0,64321.0,0.46641]
[1721364036625,0.0943,64322.0,64321.0,0.46641]
[1721364043106,0.0943,64322.0,64321.0,0.15547]
[1721364043316,0.0943,64322.0,64316.0,0.000913]
[1721364043520,0.697438,64317.0,64316.0,0.000913]
[1721364043762,1.10067333,64317.0,64316.0,0.000913]
[1721364043984,1.10067333,64317.0,64303.0,0.07809879]
[1721364043985,0.1449,64304.0,64303.0,0.000924]
[1721364044189,0.2342,64304.0,64303.0,0.000924]
[1721364045460,0.2412,64304.0,64303.0,0.001924]
[1721364045870,0.2342,64304.0,64303.0,0.000924]
[1721364046070,0.2342,64304.0,64303.0,0.001924]
[1721364046562,0.2342,64304.0,64303.0,0.000924]
[1721364046766,0.2402,64304.0,64303.0,0.000924]
[1721364047428,0.2482,64304.0,64303.0,0.000924]
[1721364047658,0.1033,64304.0,64303.0,0.156437]
[1721364047886,0.1033,64304.0,64303.0,0.467464]
[1721364048442,0.0953,64304.0,64303.0,0.467464]
[1721364048644,0.006,64304.0,64303.0,0.467464]
[1721364048853,0.1023,64304.0,64303.0,0.467464]
[1721364050416,0.1023,64304.0,64303.0,0.156437]
[1721364050624,0.243,64304.0,64303.0,0.000924]
[1721364058942,0.1023,64304.0,64303.0,0.000924]
[1721364060074,0.1023,64304.0,64303.0,0.778491]
[1721364060278,0.1023,64304.0,64303.0,0.854191]
[1721364060482,0.1023,64304.0,64303.0,1.230618]
[1721364060483,0.013,64304.0,64303.0,1.230618]
[1721364060888,0.013,64304.0,64303.0,1.330618]
[1721364061542,0.006,64304.0,64303.0,1.330618]
[1721364062043,0.0893,64305.0,64304.0,1.088577]
[1721364063689,0.0903,64305.0,64304.0,1.088577]
[1721364066437,0.0903,64305.0,64304.0,1.266077]
[1721364070959,0.0903,64305.0,64304.0,1.188577]
[1721364071159,0.0903,64305.0,64304.0,0.877555]
[1721364082394,0.0903,64305.0,64304.0,0.255511]
[1721364082571,0.2334,64305.0,64304.0,0.1]
[1721364082779,0.2334,64305.0,64304.0,0.255511]
[1721364083338,0.2334,64305.0,64303.0,0.156437]
[1721364083544,0.2334,64305.0,64303.0,0.000924]
[1721364085616,0.2324,64305.0,64303.0,0.000924]
[1721364086010,0.2334,64305.0,64303.0,0.000924]
[1721364086949,0.2324,64305.0,64303.0,0.000924]
[1721364087070,0.2454,64305.0,64303.0,0.000924]
[1721364088706,0.2384,64305.0,64303.0,0.000924]
[1721364088914,0.2454,64305.0,64303.0,0.000924]
[1721364090170,0.2854899,64305.0,64303.0,0.000924]
[1721364090843,0.2454,64305.0,64303.0,0.000924]
[1721364093482,0.013,64305.0,64304.0,0.777555]
[1721364093682,0.1023,64305.0,64304.0,0.777555]
[1721364094850,0.0953,64305.0,64304.0,0.777555]
[1721364094973,0.0893,64305.0,64304.0,0.777555]
[1721364095174,0.0963,64305.0,64304.0,0.777555]
[1721364095904,0.1023,64305.0,64304.0,0.777555]
[1721364099393,0.013,64305.0,64304.0,0.777555]
[1721364099833,0.1023,64305.0,64304.0,0.777555]
[1721364101015,0.1023,64305.0,64304.0,1.088577]
[1721364107575,1.1023,64305.0,64304.0,1.088577]
[1721364109833,1.1023,64305.0,64303.0,0.000924]
[1721364109834,1.1678,64305.0,64303.0,0.000924]
[1721364110047,0.0811,64304.0,64303.0,0.000924]
[1721364112255,0.0861,64304.0,64303.0,0.000924]
[1721364112886,0.0921,64304.0,64303.0,0.000924]
[1721364118527,0.1568,64304.0,64303.0,0.000924]
[1721364118741,0.1568,64304.0,64297.0,0.311052]
[1721364118742,0.1478,64303.0,64298.0,0.136449]
[1721364118928,0.0893,64300.0,64298.0,0.136449]
[1721364119185,0.0893,64300.0,64298.0,0.135949]
[1721364121590,0.0903,64300.0,64298.0,0.135949]
[1721364122211,0.0893,64300.0,64298.0,0.135949]
[1721364123710,0.0923,64300.0,64298.0,0.135949]
[1721364124181,0.0893,64300.0,64298.0,0.135949]
[1721364124563,0.0903,64300.0,64298.0,0.135949]
[1721364125033,0.0893,64300.0,64298.0,0.135949]
[1721364125232,0.0983,64300.0,64298.0,0.135949]
[1721364125972,0.0923,64300.0,64298.0,0.135949]
[1721364126902,0.0933,64300.0,64299.0,0.155523]
[1721364127075,0.001,64300.0,64299.0,0.608769]
[1721364127306,0.0913,64300.0,64299.0,0.919815]
[1721364127954,0.0903,64300.0,64299.0,0.919815]
[1721364128155,0.0933,64300.0,64299.0,0.919815]
[1721364128363,0.0923,64300.0,64299.0,0.919815]
[1721364128559,0.0933,64300.0,64299.0,0.919815]
[1721364128764,0.004,64300.0,64299.0,0.919815]
[1721364128969,0.004,64300.0,64299.0,1.38524274]
[1721364129924,0.003,64300.0,64299.0,1.38524274]
[1721364130134,0.0893,64301.0,64300.0,1.088643]
[1721364131372,0.0923,64301.0,64300.0,1.088643]
[1721364131715,0.0933,64301.0,64300.0,1.088643]
[1721364133958,0.0933,64301.0,64300.0,0.466561]
[1721364137359,0.004,64301.0,64300.0,0.466561]
[1721364137537,0.0933,64301.0,64300.0,0.466561]